Cogmind - Beta 14 @@@ ROGUE MODE // 2024.10.14 @ 18:40:15 Player: laeb2 Result: Destroyed by D-53 Grenadier with Mini Grenade Launcher Performance ------------- Evolutions (0) 0 Regions Visited (0) 0 Robots Destroyed (4) 20 Value Destroyed (27) 27 Prototype IDs (0) 0 Alien Tech Used (0) 0 Bonus (0) 0 TOTAL SCORE: 47 Bonus ------- None Cogmind --------- Core Integrity 0/250 Matter 259/300 Energy 130/250 System Corruption 6% Temperature Cool (0) Movement Walking (120) Location -11/Scrapyard Parts ------- > --- POWER (1) -------- Ion Engine > --- PROPULSION (2) --- Aluminum Leg Aluminum Leg > --- UTILITY (2) ------ Small Storage Unit Improved Terrain Scanner > --- WEAPON (2) ------- Light Assault Rifle > --- INVENTORY (8) ---- Wheel Wheel Improved Terrain Scanner EM Pulse Gun Peak State ------------ > --- POWER ------------ Ion Engine > --- PROPULSION ------- Light Treads Light Treads > --- UTILITY ---------- Small Storage Unit Improved Terrain Scanner > --- WEAPON ----------- EM Pulse Gun Medium Laser > --- INVENTORY -------- Ion Engine Aluminum Leg Aluminum Leg Wheel Wheel Improved Terrain Scanner Light Assault Rifle Mining Laser [Rating: 10] Favorites ----------- Power Ion Engine Engine Ion Engine Propulsion Light Treads Treads Light Treads Leg Aluminum Leg Utility Small Storage Unit Device Improved Terrain Scanner Storage Small Storage Unit Weapon Medium Laser Energy Gun Medium Laser Ballistic Gun Light Assault Rifle Special Weapon Mining Laser Build | -11 ------- Run | Yrd Slots Evolved . | . Power . | . Propulsion . | . Utility . | . Weapon . | . Parts Attached 12 | 12 Power 2 | 2 Engine 2 | 2 Core . | . Reactor . | . Propulsion 4 | 4 Treads 2 | 2 Leg 2 | 2 Wheel . | . Hover . | . Flight . | . Utility 2 | 2 Device 1 | 1 Storage 1 | 1 Processor . | . Hackware . | . Protection . | . Artifact . | . Weapon 4 | 4 Energy Gun 2 | 2 Energy Cannon . | . Ballistic Gun 1 | 1 Ballistic Cannon . | . Launcher . | . Special Weapon 1 | 1 Impact Weapon . | . Slashing Weapon . | . Piercing Weapon . | . Special Melee Weapon . | . Unidentified Prototypes . | . Parts Lost 5 | 5 Power 1 | 1 Propulsion 2 | 2 Utility . | . Weapon 2 | 2 Highest Loss Streak 5 | 5 To Critical Strikes . | . Average Slot Usage (%) . | . Peak Build Rating 10 | 10 Average Rating 9 | 9 On Entrance . | . Naked Turns . | . Heaviest Build 15 | 15 Greatest Support 40 | 40 Greatest Overweight (x) 3 | 3 Average Overweight (x) . | . Largest Inventory Capacity 8 | 8 Average Capacity 7 | 7 Most Carried 8 | 8 Average Carried 7 | 7 Final Capacity 8 | 8 Final Carried 4 | 4 Class Distribution -------------------- None Dominant Class ---------------- None Resources | -11 ----------- Run | Yrd Matter Collected 270 | 270 Remotely . | . Salvage Created 127 | 127 Parts 12 | 12 Haulers Intercepted . | . Recyclers Shooed . | . Parts Field Recycled . | . Retrieved Matter . | . Parts Self-Destructed . | . Prevented . | . Kills | -11 ------- Run | Yrd Combat Hostiles Destroyed . | . Classes Destroyed 2 | 2 Tunneler 3 | 3 Recycler 1 | 1 Best Kill Streak 3 | 3 Combat Bots Only . | . Max Kills in Single Turn 1 | 1 Gunslinging . | . Exploded . | . Melee . | . Uniques/NPCs Destroyed . | . Combat | -11 -------- Run | Yrd Hostile Shots Fired 66 | 66 Missed 13 | 13 Damage Taken 906 | 906 Core 251 | 251 Absorbed by Shields . | . Core Remaining (%) . | . Volleys Fired 144 | 144 Largest 2 | 2 Hottest 150 | 150 Shots Fired 152 | 152 Gun 32 | 32 Cannon . | . Launcher . | . Special 120 | 120 Kinetic 6 | 6 Thermal 143 | 143 Explosive . | . Electromagnetic 3 | 3 Robot Hit Streak 4 | 4 Robot Miss Streak 2 | 2 Penetration Max . | . Secondary Targets . | . Shots Hit Robots 14 | 14 Core Hits 6 | 6 Critical Kills . | . Critical Parts Destroyed . | . Critical Strikes . | . Melee Attacks . | . Impact . | . Slashing . | . Piercing . | . Sneak Attacks . | . Combat Hostiles . | . Follow-up Attacks . | . Damage Inflicted 163 | 163 Guns 155 | 155 Cannons . | . Explosions . | . Melee . | . Ramming 8 | 8 Kinetic 28 | 28 Thermal 101 | 101 Explosive . | . Electromagnetic 26 | 26 Impact . | . Slashing . | . Piercing . | . Highest Corruption 6 | 6 Average Corruption 5 | 5 Corruption Purged . | . Corruption Blocked . | . Effects 1 | 1 Message Errors 1 | 1 Overload Shots . | . Overflow Damage . | . Projectiles . | . Explosions . | . Melee . | . Knockbacks . | . Impact . | . Kinetic . | . Secondary . | . Self-Inflicted Damage . | . Shots . | . Rammed 2 | 2 Targets Rammed 2 | 2 Kicked . | . Crushed . | . Highest Temperature 260 | 260 Average Temperature 77 | 77 Received Heat Transfer 440 | 440 Effects 2 | 2 Energy Bleed 1 | 1 Interference 1 | 1 Siege Activations . | . Robots Corrupted . | . Combat Hostiles . | . Parts Fried . | . Impact Corruptions . | . Robots Melted . | . Combat Hostiles . | . Parts Melted . | . Heat Transferred 296 | 296 Parts Sabotaged . | . Parts Stolen . | . Parts Stripped . | . Power Chain Reactions . | . Alert | -11 ------- Run | Yrd Peak Influence 20 | 20 Initial . | . Average 5 | 5 Maximum Alert Level . | . Low Security (%) 100 | 100 Level 1 . | . Level 2 . | . Level 3 . | . Level 4 . | . Level 5 . | . High Security . | . Max Security . | . Squads Dispatched . | . Investigation . | . Extermination . | . Reinforcement . | . Assault . | . Garrison . | . Intercept . | . Searches Triggered . | . Construction Impeded . | . Haulers Reinforced . | . Active Scanning Responses . | . Cargo Convoy Interrupts . | . Stealth | -11 --------- Run | Yrd Distress Signals . | . Communications Jammed . | . Distress Signals . | . Times Spotted 22 | 22 Peak Tracking Total 20 | 20 Tactical Retreats 1 | 1 Traps | -11 ------- Run | Yrd Traps Triggered . | . Indirectly . | . Trap Hack Attempts . | . Triggered . | . Disarmed . | . Reprogrammed . | . Reused . | . Traps Extracted . | . Installed . | . Triggered . | . Machines | -11 ---------- Run | Yrd Machines Disabled . | . Max in Single Turn . | . Machines Repaired . | . Machines Dismantled . | . Machines Sabotaged . | . Overloaded Fab Kills . | . Hacking | -11 --------- Run | Yrd Machines Accessed . | . Terminals . | . Fabricators . | . Repair Stations . | . Recycling Units . | . Scanalyzers . | . Garrison Access . | . Total Hacks . | . Successful . | . Failed . | . Catastrophic . | . Database Lockouts . | . Manual . | . Terminals . | . Fabricators . | . Repair Stations . | . Recycling Units . | . Scanalyzers . | . Garrison Access . | . Terminal Hacks . | . Fabricator Hacks . | . Repair Station Hacks . | . Recycling Unit Hacks . | . Scanalyzer . | . Garrison Access Hacks . | . Unauthorized Hacks . | . Terminals . | . Fabricators . | . Repair Stations . | . Recycling Units . | . Scanalyzers . | . Garrison Access . | . Data Cores Recovered . | . Used . | . Hacking Detections . | . Full Trace Events . | . Feedback Events . | . Feedback Blocked . | . Robot Schematics Acquired . | . Robots Built . | . Authchips . | . Time . | . Total Robot Build Rating . | . Part Schematics Acquired . | . Parts Built . | . Authchips . | . Time . | . Total Part Build Rating . | . Parts Repaired . | . Time . | . Parts Recycled . | . Recycled Matter . | . Retrieved Matter . | . Retrieved Components . | . Parts Scanalyzed . | . Part Schematics Acquired . | . Parts Damaged . | . Bothacking | -11 ------------ Run | Yrd Used RIF Installer . | . Robots Hacked . | . Non-combat . | . Combat . | . Robot Hacks Applied . | . Relay Couplers Released . | . Fabnet Peak Effective % . | . Robots Rewired . | . Allies Hacked . | . Hacks Repelled . | . Allies | -11 -------- Run | Yrd Total Allies . | . Largest Group . | . Highest-Rated Group . | . Highest-Rated Ally . | . Total Orders . | . Ally Attacks . | . Total Damage . | . Kills . | . Allies Corrupted . | . Allies Melted . | . Intel | -11 ------- Run | Yrd Robot Analysis Total . | . Derelict Logs Recovered . | . Drone Launches . | . Drone Recoveries . | . Exploration | -11 ------------- Run | Yrd Turns Passed 1118 | 1118 Spaces Moved 205 | 205 Core 27 | 27 Treads 178 | 178 Legs . | . Wheels . | . Hover . | . Flight . | . Fastest Speed 50 | 50 Average Speed 150 | 150 Slowest Speed 200 | 200 Overloaded Moves . | . Propulsion Burnouts . | . Robots Hopped . | . Cave-ins Triggered . | . Exploration Rate (%) 12 | 12 Regions Visited . Branch Regions . Pre-discovered Areas . | . Known Exits Taken . | . Unknown Exits Taken . | . Scrap Searched . | . Spaces Dug 13 | 13 Terrain Destroyed 22 | 22 Melee . | . Projectile 22 | 22 AOE . | . Terrain Rammed . | . Walls Destroyed . | . Machines Disabled . | . Actions | -11 --------- Run | Yrd Total 621 | 621 Wait 246 | 246 Move 205 | 205 Hop . | . Pick Up 12 | 12 Fast Attach 3 | 3 Attach 8 | 8 Detach . | . Swap 1 | 1 Drop . | . Fire 144 | 144 Melee . | . Ram . | . Kick . | . Crush 2 | 2 Escape Stasis . | . Rewire . | . Trap . | . Miscellaneous . | . Route ------- -11/Scrapyard (discovered 1 exit: [*Mat]) History --------- Turn | Location | Event 17 | -11/Scrapyard | Discovered new exit (range 15) 1087 | -11/Scrapyard | Assembled infested the area 1095 | -11/Scrapyard | Core integrity fell below 50% 1111 | -11/Scrapyard | Core integrity fell below 20% 1119 | -11/Scrapyard | Destroyed by D-53 Grenadier with Mini Grenade Launcher Last Messages --------------- Overheating: System interference. Imp. Terrain Scanner temporarily disabled. ALERT: Infestation in the scrapyard, dispatching Demolisher response squad. Mining Laser destroyed. K-01 Serf collects debris. as-90458 sneak attacks. K-01 Serf destroyed. Critical hit (Burn: +80). Slammed into as-21193. Ion Engine destroyed. Lgt. Treads destroyed. Slammed into as-22191. Lgt. Treads destroyed. System corrupted by crushing effect (+4). Med. Laser destroyed. System corrupted by crushing effect (+2). EZULVUQQC ENT&ZCP K,Q%NZ%L4FB1I:VU C-30 ARC bursts open, deploying its payload. D-53 Grenadier unfolds itself. Map ----- +----------------------------------------------------+ | | | | | | | | | | | | | | | | | ????????????#????????????????????????????????????? | | ?????????????????????##?????#???????#?#??????????? | | ?????????????#??????#???##?????#???#?#???????????? | | ??????????????#????????????#???#?????????????????? | | ???????#???????#?#??#???####??#?#????????????????? | | ???????????????#?????#### ####?#???#????????????? | | ??????????#?##?????### # #???#??#?????#?????? | | ???????????????????# #?????###???????????? | | ??????????????#??#?## #?##?#??#???????????? | | ??????????##???#??#?# ##?###?####?????????? | | ????????????????????# #?###???#???????????? | | ???????????#?#?????### ###?#?????????#?????? | | ??????????????????#### %###???###??#??#???#???? | | ??????????#???#??#?#### * #?###??##??###????????? | | ?????????#????#?????#####%##?###??#????#??##?????? | | ????????????###???#????# ##??#??####?##?#?#?????? | | ????????????##?#?#####?#a# #?#??##?#####?????????? | | ??????????????#?#????####@ ???##?#??##?????#?????? | | ?????????????##???#?##?# d ##?#?####?####????????? | | ???????????#????##?###?#d ##### #?#?##??#???#?? | | ??????????????##?#?##?##% #?## ## ##???###???#??? | | ???????????#???????#???# #### ## ##???#?#??#???? | | ???????????#?##?#??##?## ## ###???#?#?#??? | | ???????????#??#?#?#?##?# ###??#?#?????? | | ???????????#?#?####?#?## # #???#?#?????? | | ????????????????????#?# ## ######????????? | | ?????????????#??#?#?#### #### ##?##??##?#??? | | ???????????#??????#??## #### ###?#???#?#???? | | ?????????????#????##?### #??# ##?##????#???? | | ????????????#???#??##??# #??########?#?#???#?#??? | | ?????????#?#??????#?##?# # ????#??####?????????? | | ?????????????????####?## ?? ?##??#??#?#??????? | | ?????????????????? ##? ##?# ??#?#?#??????????? | | ?????????????##?#??# # ##?#? ?##????#?????#???? | | ?????????#??#????# # #? ?#? ?#?#?#?##???????? | | ?????????#????????## # ???#????#?#????#?????? | | ????????#??????????## # ###??##??###?#?????????? | | ????????????##???##? ### #?#?#??????#??#????????? | | ????##????#??#?????? ??# #??#??#?#??????#???????? | | ??#?????#???????#?#??#?# #?# ? ??#??????#???????? | | ????????#??######?###?## #?????#????##??????????? | | ??#?#??#???? # ##???#?# #??????????????????????? | +----------------------------------------------------+ Best States ------------- Heat Dissipation 25 Energy Generation 10 Energy Capacity 250 Matter Stores 300 Matter Capacity 300 Sight Range 16 Terrain Scan Range 16 Terrain Scan Density 10 Evasion (%) 50 Recoil Reduction 2 Item Schematics ----------------- None Robot Schematics ------------------ None Fabricated ------------ Nothing Alien Tech Used ----------------- None Achievements -------------- None Challenges ------------ None Game ------ Seed MappingShieldStabilizer Manual? 0 Play Time 00:11:40 Cumulative 51.0 hours Start 2024.10.14 @ 18:34:22 End 2024.10.14 @ 18:40:15 Sessions 0 Manual Loads 0 Difficulty Rogue Special Mode None Game No. 70 Rogue 70 Adventurer 0 Explorer 0 Win Type - Total 1 Types 1/0/0/0/0/0/0/0/0 Lore% 37 Gallery% 42 Achievement% 40 Wizard Run 0 Options --------- Layout 1 ASCII 0 Keyboard 0 Movement Mouse Keybinds 0 Fullscreen 1 Font 32/SmallcapsGlow Map View 50x35 Zoom Use 0% Tactical HUD 0 Map Filters NONE Filters NONE Steam 1 RUN: dd713bde-3e8f-415e-8940-b4133234bf6c